fUSD/lending_fUSD_20240105
["ID","MTS","AMOUNT","RATE_DAILY","PERIOD"]
[310239952,1704412829306,325.86,0.0001997,2]
[310239953,1704412829513,325.86,0.00022234,2]
[310239954,1704413005170,171.64,0.0002185,2]
[310239955,1704413011131,7.17752813,0.0002185,2]
[310239956,1704413011153,185.22,0.0002185,2]
[310239957,1704413011178,7.60247187,0.0002185,2]
[310239958,1704413028745,294.68,0.00021851,2]
[310239959,1704413041684,15.04944813,0.00022068,2]
[310239960,1704413041709,140.60055187,0.00022068,2]
[310239963,1704413118717,150.0,0.00022,2]
[310239964,1704413119684,48.08534636,0.00021852,2]
[310239965,1704413119708,151.51465364,0.00021852,2]
[310239966,1704413133410,178.81752813,0.00020468,2]
[310239967,1704413189574,168.95,0.00021851,2]
[310239968,1704413292837,155.32,0.00022017,2]
[310239969,1704413293276,155.32,0.00022246,2]
[310239970,1704413293307,895.97126322,0.00022064,2]
[310239971,1704413293488,155.32,0.00022476,2]
[310239993,1704413431964,-151.06375353,0.00022548,2]
[310239994,1704413431974,-156.45402908,0.00022629,2]
[310239995,1704413431984,-155.32,0.00022705,2]
[310239996,1704413431994,-150.0,0.00022725,2]
[310239997,1704413432003,-150.0,0.00022729,2]
[310239998,1704413432013,-359.00876726,0.00022729,2]
[310239999,1704413432026,-367.83886816,0.00022729,2]
[310240000,1704413432037,-1614.07225045,0.00022729,2]
[310240001,1704413432046,-150.0,0.00022735,2]
[310240002,1704413432056,-150.0,0.00022735,2]
[310240003,1704413432065,-150.0,0.00022736,2]
[310240005,1704413432076,-150.0,0.00022739,2]
[310240007,1704413432085,-150.0,0.00022744,2]
[310240008,1704413432097,-150.0,0.00022747,2]
[310240009,1704413432106,-1.06203179,0.00022748,2]
[310240010,1704413432119,-148.93796821,0.00022748,2]
[310240011,1704413432129,-146.59436979,0.00022752,2]
[310240012,1704413432153,-3.40563021,0.00022752,2]
[310240013,1704413432162,-150.0,0.00022752,2]
[310240014,1704413432172,-150.0,0.00022754,2]
[310240015,1704413432181,-499.99,0.00022755,2]
[310240016,1704413432191,-150.0,0.00022759,2]
[310240017,1704413432201,-150.0,0.00022759,2]
[310240018,1704413432211,-150.0,0.0002276,2]
[310240019,1704413432222,-150.0,0.00022764,2]
[310240020,1704413432236,-156.45402908,0.00022765,2]
[310240021,1704413432247,-150.0,0.00022766,2]
[310240022,1704413432258,-150.0,0.00022768,2]
[310240023,1704413432268,-150.0,0.00022771,2]
[310240024,1704413432278,-1500.0,0.00022772,2]
[310240025,1704413432288,-150.0,0.00022772,2]
[310240026,1704413432297,-150.0,0.00022773,2]
[310240027,1704413432307,-873.47770075,0.00022774,2]
[310240028,1704413432321,-626.52229925,0.00022774,2]
[310240029,1704413432332,-150.0,0.00022778,2]
[310240030,1704413432340,-150.0,0.00022778,2]
[310240031,1704413432349,-150.0,0.00022778,2]
[310240032,1704413432358,-150.0,0.00022779,2]
[310240033,1704413432367,-150.0,0.00022781,2]
[310240034,1704413432376,-150.0,0.00022785,2]
[310240035,1704413432384,-150.0,0.00022785,2]
[310240036,1704413432395,-150.0,0.00022785,2]
[310240037,1704413432404,-150.0,0.00022793,2]
[310240038,1704413432414,-300.0,0.00022795,2]
[310240039,1704413432425,-150.0,0.00022795,2]
[310240040,1704413432434,-150.0,0.00022796,2]
[310240041,1704413432444,-150.0,0.00022799,2]
[310240042,1704413432453,-150.0,0.000228,2]
[310240043,1704413432464,-150.0,0.000228,2]
[310240044,1704413432473,-300.0,0.00022804,2]
[310240045,1704413432483,-150.0,0.00022808,2]
[310240046,1704413432493,-150.0,0.00022809,2]
[310240047,1704413432504,-30.4923093,0.00022809,2]
[310240048,1704413432520,-119.5076907,0.00022809,2]
[310240049,1704413432531,-150.0,0.00022812,2]
[310240050,1704413432540,-150.0,0.00022814,2]
[310240051,1704413432552,-150.0,0.00022815,2]
[310240052,1704413432563,-150.0,0.0002282,2]
[310240053,1704413432580,-1500.0,0.00022821,2]
[310240054,1704413432591,-150.0,0.00022823,2]
[310240055,1704413432601,-150.0,0.00022827,2]
[310240056,1704413432611,-294.68,0.0002283,2]
[310240057,1704413432621,-150.0,0.00022831,2]
[310240058,1704413432631,-150.0,0.00022831,2]
[310240059,1704413432640,-150.0,0.00022836,2]
[310240060,1704413432650,-150.0,0.00022841,2]
[310240061,1704413432660,-150.0,0.00022842,2]
[310240062,1704413432670,-150.0,0.00022846,2]
[310240063,1704413432679,-150.0,0.00022847,2]
[310240064,1704413432688,-150.0,0.00022849,2]
[310240065,1704413432699,-431.23,0.00022849,2]
[310240066,1704413432709,-150.0,0.0002286,2]
[310240067,1704413432719,-150.0,0.00022862,2]
[310240068,1704413432730,-150.0,0.00022864,2]
[310240069,1704413432741,-150.0,0.00022865,2]
[310240070,1704413432752,-150.0,0.00022866,2]
[310240071,1704413432762,-150.0,0.00022866,2]
[310240072,1704413432774,-150.0,0.00022866,2]
[310240073,1704413432785,-1500.0,0.00022867,2]
[310240074,1704413432795,-1500.0,0.00022867,2]
[310240075,1704413432807,-150.0,0.00022867,2]
[310240076,1704413432818,-150.0,0.00022868,2]
[310240077,1704413432829,-150.0,0.00022869,2]
[310240078,1704413432840,-150.0,0.00022875,2]
[310240079,1704413432850,-150.0,0.00022877,2]
[310240080,1704413432861,-150.0,0.00022879,2]
[310240081,1704413432872,-763.73141224,0.0002288,2]
[310240082,1704413432883,-150.0,0.00022881,2]
[310240083,1704413432895,-300.0,0.00022882,2]
[310240084,1704413432907,-150.0,0.00022883,2]
[310240085,1704413432919,-150.0,0.00022884,2]
[310240086,1704413432931,-150.0,0.00022884,2]
[310240087,1704413432943,-150.0,0.00022885,2]
[310240088,1704413432956,-150.0,0.00022887,2]
[310240089,1704413432966,-1500.0,0.00022888,2]
[310240090,1704413432976,-150.0,0.00022893,2]
[310240091,1704413432987,-150.0,0.00022898,2]
[310240092,1704413432999,-152.06248578,0.00022898,2]
[310240093,1704413433008,-152.06248578,0.00022899,2]
[310240094,1704413433019,-196.8291,0.000229,2]
[310240095,1704413433030,-5017.79827025,0.000229,2]
[310240096,1704413433044,-250.19404164,0.000229,2]
[310240097,1704413433077,-971.30095743,0.000229,2]
[310240098,1704413433087,-807.7472,0.000229,2]
[310240099,1704413433098,-193.32810436,0.000229,2]
[310240100,1704413433108,-194.6973,0.000229,2]
[310240101,1704413433119,-6317.0602,0.000229,2]
[310240102,1704413433129,-177.02216324,0.000229,2]
[310240103,1704413433139,-156.45402908,0.000229,2]
[310240104,1704413433150,-12678.08,0.000229,2]
[310240105,1704413433159,-1222.12385986,0.000229,2]
[310240106,1704413433169,-152.06248578,0.000229,2]
[310240107,1704413433179,-2599.37573539,0.000229,2]
[310240108,1704413433189,-150.0,0.00022904,2]
[310240109,1704413433198,-150.0,0.00022904,2]
[310240110,1704413433212,-150.0,0.00022908,2]
[310240111,1704413433222,-150.0,0.00022909,2]
[310240112,1704413433233,-150.0,0.00022918,2]
[310240113,1704413433243,-150.0,0.00022918,2]
[310240114,1704413433254,-150.0,0.00022918,2]
[310240115,1704413433266,-1500.0,0.0002293,2]
[310240116,1704413433277,-150.0,0.00022933,2]
[310240117,1704413433287,-155.32,0.00022934,2]
[310240118,1704413433297,-150.0,0.00022935,2]
[310240119,1704413433308,-150.0,0.00022939,2]
[310240120,1704413433317,-150.0,0.00022941,2]
[310240121,1704413433326,-150.0,0.00022945,2]
[310240122,1704413433336,-301.12222981,0.00022947,2]
[310240123,1704413433345,-150.0,0.00022949,2]
[310240124,1704413433355,-150.0,0.0002295,2]
[310240125,1704413433365,-150.0,0.00022951,2]
[310240126,1704413433374,-150.0,0.00022955,2]
[310240127,1704413433384,-150.0,0.00022957,2]
[310240128,1704413433393,-150.0,0.00022959,2]
[310240129,1704413433402,-150.0,0.0002296,2]
[310240130,1704413433412,-150.0,0.00022962,2]
[310240131,1704413433421,-150.0,0.00022965,2]
[310240132,1704413433431,-150.0,0.00022966,2]
[310240133,1704413433441,-150.0,0.00022972,2]
[310240134,1704413433450,-150.0,0.00022975,2]
[310240135,1704413433460,-280.75931035,0.00022978,2]
[310240136,1704413433469,-150.0,0.00022978,2]
[310240137,1704413433478,-150.0,0.00022984,2]
[310240138,1704413433486,-150.0,0.00022987,2]
[310240139,1704413433496,-178.30777722,0.0002299,2]
[310240140,1704413433505,-150.0,0.00022991,2]
[310240141,1704413433514,-33498.5076602,0.00022998,2]
[310240142,1704413433526,-16312.30057814,0.00022998,2]
[310240143,1704413433538,-56075.90035893,0.00022998,2]
[310240144,1704413433547,-2927.51927162,0.00022998,2]
[310240145,1704413433558,-3469.74785166,0.00022998,2]
[310240146,1704413433567,-241.52141626,0.00022998,2]
[310240147,1704413433576,-7055.5052627,0.00022998,2]
[310240148,1704413433586,-699.5609749,0.00022998,2]
[310240149,1704413433597,-1198.0595198,0.00022998,2]
[310240150,1704413433608,-198.1994,0.00022998,2]
[310240151,1704413433618,-155.0,0.00022999,2]
[310240152,1704413433628,-150.01,0.00022999,2]
[310240153,1704413433637,-3285.96465314,0.00022999,2]
[310240154,1704413433656,-150.0,0.00022999,2]
[310240155,1704413433670,-150.0,0.00022999,2]
[310240156,1704413433680,-150.0,0.00022999,2]
[310240157,1704413433691,-150.0,0.00022999,2]
[310240158,1704413433701,-150.0,0.00022999,2]
[310240159,1704413433712,-150.0,0.00022999,2]
[310240160,1704413433722,-150.0,0.00022999,2]
[310240161,1704413433732,-150.0,0.00022999,2]
[310240162,1704413433741,-150.0,0.00022999,2]
[310240163,1704413433752,-150.0,0.00022999,2]
[310240164,1704413433762,-150.0,0.00022999,2]
[310240165,1704413433772,-150.0,0.00022999,2]
[310240166,1704413433782,-150.0,0.00022999,2]
[310240167,1704413433792,-150.0,0.00022999,2]
[310240168,1704413433803,-150.0,0.00022999,2]
[310240169,1704413433813,-150.0,0.00022999,2]
[310240170,1704413433822,-93814.56403846,0.00023,2]
[310240182,1704413437829,-150.0,0.00022807,2]
[310240183,1704413437839,-435.54437999,0.000229,2]
[310240184,1704413437954,-307.85419181,0.000229,2]
[310240185,1704413437964,-150.01,0.00022999,2]
[310240186,1704413437973,-19293.12839552,0.00023,2]
[310240187,1704413437985,-2544161.72329138,0.00023,2]
[310240188,1704413437995,-590891.7442419,0.00023,2]
[310240189,1704413438005,-931.37568394,0.00023,2]
[310240190,1704413438014,-6125239.3373818,0.00023,2]
[310240191,1704413438026,-685536.05390616,0.00023,2]
[310240192,1704413438038,-578914.19288253,0.00023,2]
[310240193,1704413438066,-12282.80695017,0.00023,2]
[310240194,1704413438077,-33810.42877197,0.00023,2]
[310240195,1704413438089,-1285.22235789,0.00023,2]
[310240196,1704413438101,-951.26132272,0.00023,2]
[310240197,1704413438113,-17996.82427173,0.00023,2]
[310240201,1704413440272,-649.79337,0.00022999,2]
[310240212,1704413440361,-359.26507755,0.00022999,2]
[310240214,1704413440373,-2276.90620559,0.00022999,2]
[310240216,1704413440382,-7020.24206984,0.00023,2]
[310240219,1704413440398,-1750.53869379,0.00023,2]
[310240245,1704413440627,-7160.62480002,0.00023,2]
[310240247,1704413440639,-12386.0209,0.00023,2]
[310240249,1704413440651,-396.26078023,0.00023,2]
[310240251,1704413440662,-37538.0,0.00023,2]
[310240256,1704413440692,150.0,0.00021812,2]
[310240258,1704413440719,150.0,0.00021901,2]
[310240261,1704413440748,150.0,0.00021961,2]
[310240266,1704413440781,150.0,0.00021829,2]
[310240270,1704413440811,150.0,0.0002192,2]
[310240274,1704413440840,150.0,0.00021909,2]
[310240278,1704413440867,150.0,0.00021786,2]
[310240284,1704413440955,213.50754759,0.00021785,2]
[310240285,1704413440989,150.0,0.00021912,2]
[310240290,1704413442694,-34832.90890594,0.00023,2]
[310240291,1704413442911,-3021.83819363,0.00023,2]
[310240292,1704413442923,-2005.40600007,0.00023,2]
[310240316,1704413445802,-150.01,0.00022999,2]
[310240317,1704413445812,-3285.96465314,0.00022999,2]
[310240318,1704413445822,-124093.32657478,0.00023,2]
[310240322,1704413722609,154.69,0.00022343,2]
[310240323,1704413852823,76.95261949,0.0002249,2]
[310240324,1704413852850,150.0,0.0002249,2]
[310240325,1704413852875,150.0,0.0002249,2]
[310240326,1704413852898,150.0,0.0002249,2]
[310240327,1704413852921,150.0,0.0002249,2]
[310240328,1704413852944,392.47486799,0.0002249,2]
[310240329,1704413865786,450.0,0.00022343,2]
[310240330,1704413979253,150.0,0.00020471,2]
[310240331,1704413979275,250.0,0.00020471,2]
[310240332,1704413979300,71.95,0.00020471,2]
[310240333,1704414009014,150.0,0.00022336,2]
[310240334,1704414009036,150.0,0.00022336,2]
[310240335,1704414009057,150.0,0.00022336,2]
[310240336,1704414009079,150.0,0.00022336,2]
[310240337,1704414009101,150.0,0.00022336,2]
[310240338,1704414009122,150.0,0.00022336,2]
[310240339,1704414009146,23000.0,0.00022336,2]
[310240340,1704414205392,150.0,0.00022343,2]
[310240341,1704414205414,4.69,0.00022343,2]
[310240342,1704414228153,145.31,0.00022343,2]
[310240343,1704414228174,86.56,0.00022343,2]
[310240344,1704414235703,63.44,0.00022342,2]
[310240345,1704414235726,150.0,0.00022342,2]
[310240346,1704414235748,150.0,0.00022342,2]
[310240347,1704414235771,150.0,0.00022342,2]
[310240348,1704414235793,9.70264876,0.00022342,2]
[310240349,1704414244913,210.0,0.00021673,2]
[310240350,1704414246346,750.0,0.00022308,2]
[310240351,1704414300436,150.0,0.00022,2]
[310240352,1704414339715,791.58,0.00022177,2]
[310240353,1704414348470,840.0,0.00022359,2]
[310240354,1704414418806,-1177.23896733,0.00022709,2]
[310240355,1704414418837,-150.0,0.00022757,2]
[310240356,1704414418866,-1797.0,0.0002277,2]
[310240357,1704414418898,-156.6660409,0.00022799,2]
[310240358,1704414418929,-150.0,0.00022873,2]
[310240359,1704414418959,-156.6660409,0.000229,2]
[310240360,1704414418988,-1293.3324,0.000229,2]
[310240361,1704414419022,-407.37461994,0.000229,2]
[310240362,1704414419050,-515.4724,0.000229,2]
[310240363,1704414419079,-397.97152329,0.000229,2]
[310240364,1704414419107,-150.0,0.00022908,2]
[310240365,1704414419137,-1293.01,0.00022908,2]
[310240366,1704414419166,-164.3,0.0002295,2]
[310240367,1704414419196,-150.0,0.00022993,2]
[310240368,1704414419224,-1686.77,0.00022994,2]
[310240369,1704414419253,-1176.0260624,0.00022994,2]
[310240370,1704414419282,-585.8211239,0.00022994,2]
[310240371,1704414419311,-42654.09137999,0.00022996,2]
[310240372,1704414419339,-428.01,0.00022998,2]
[310240373,1704414419366,-218.98325398,0.00022998,2]
[310240374,1704414419397,-370.56626258,0.00022998,2]
[310240375,1704414419425,-150.01,0.00022999,2]
[310240376,1704414419453,-3285.96465314,0.00022999,2]
[310240377,1704414419484,-15244.72527165,0.00023,2]
[310240378,1704414421674,448.35,0.00020259,2]
[310240386,1704414631857,-323.8664012,0.00022523,2]
[310240387,1704414631913,-124.4835988,0.00022523,2]
[310240388,1704414631923,-2956.6961,0.00022899,2]
[310240389,1704414631932,-705.62458555,0.000229,2]
[310240406,1704414637844,-486.92573058,0.000229,2]
[310240407,1704414638216,-4324.15670934,0.000229,2]
[310240408,1704414638227,-1983.29297453,0.000229,2]
[310240409,1704414638237,-448.8047289,0.000229,2]
[310240410,1704414638246,-1081.5715643,0.00022994,2]
[310240411,1704414638256,-820.4780152,0.00022994,2]
[310240412,1704414638265,-783.23485282,0.00022998,2]
[310240413,1704414638274,-428.89619201,0.00022998,2]
[310240414,1704414638284,-184.59875229,0.00022999,2]
[310240415,1704414638294,-3285.96465314,0.00022999,2]
[310240416,1704414638303,-7712609.02707244,0.00023,2]
[310240417,1704414638312,-1539598.31179339,0.00023,2]
[310240418,1704414638325,-589010.81657164,0.00023,2]
[310240419,1704414638334,-931.37568394,0.00023,2]
[310240420,1704414638344,-646.01988341,0.00023,2]
[310240421,1704414638353,-2000.0,0.00023,2]
[310240422,1704414638364,-200.0,0.00023,2]
[310240423,1704414638373,-2000.0,0.00023,2]
[310240424,1704414638383,-200.0,0.00023,2]
[310240425,1704414638392,-2000.0,0.00023,2]
[310240426,1704414638402,-200.0,0.00023,2]
[310240427,1704414638411,-500.0,0.00023,2]
[310240428,1704414638421,-2000.0,0.00023,2]
[310240429,1704414638431,-200.0,0.00023,2]
[310240430,1704414638440,-874.25424925,0.0002301,2]
[310240431,1704414638449,-194.78,0.00023079,2]
[310240433,1704414638458,-999.4475,0.0002313,2]
[310240435,1704414638468,-160.0,0.00023155,2]
[310240437,1704414638477,-791.58,0.00023156,2]
[310240439,1704414638487,-1000.0,0.00023226,2]
[310240441,1704414638496,-2000.0,0.0002323,2]
[310240443,1704414638505,-200.0,0.0002323,2]
[310240445,1704414638514,-2000.0,0.0002323,2]
[310240446,1704414638523,-200.0,0.0002323,2]
[310240447,1704414638533,-2000.0,0.0002323,2]
[310240448,1704414638542,-200.0,0.0002323,2]
[310240449,1704414638552,-2000.0,0.0002323,2]
[310240450,1704414638561,-200.0,0.0002323,2]
[310240451,1704414638570,-1069.42748749,0.0002326,2]
[310240452,1704414638580,-1177.23896733,0.00023286,2]
[310240453,1704414638589,-2000.0,0.00023462,2]
[310240454,1704414638598,-200.0,0.00023462,2]
[310240455,1704414638607,-2000.0,0.00023462,2]
[310240456,1704414638616,-200.0,0.00023462,2]
[310240457,1704414638626,-2000.0,0.00023462,2]
[310240458,1704414638635,-200.0,0.00023462,2]
[310240459,1704414638644,-154.69,0.00023508,2]
[310240460,1704414638653,-164.3,0.00023524,2]
[310240461,1704414638663,-153.45,0.00023547,2]
[310240462,1704414638672,-2000.0,0.00023697,2]
[310240463,1704414638682,-200.0,0.00023697,2]
[310240464,1704414638691,-2000.0,0.00023697,2]
[310240465,1704414638701,-200.0,0.00023697,2]
[310240466,1704414638710,-2000.0,0.00023697,2]
[310240467,1704414638719,-200.0,0.00023697,2]
[310240468,1704414638729,-2000.0,0.00023934,2]
[310240469,1704414638738,-200.0,0.00023934,2]
[310240470,1704414638748,-2000.0,0.00023934,2]
[310240471,1704414638760,-200.0,0.00023934,2]
[310240472,1704414638769,-2000.0,0.00023934,2]
[310240473,1704414638779,-200.0,0.00023934,2]
[310240474,1704414638788,-155.0,0.00024,2]
[310240475,1704414638797,-506.134571,0.00024,2]
[310240476,1704414638807,-171.64,0.00024035,2]
[310240477,1704414638816,-164.3,0.00024098,2]
[310240478,1704414638826,-791.58,0.00024134,2]
[310240479,1704414638835,-250.0,0.00024658,2]
[310240480,1704414638845,-164.3,0.00024672,2]
[310240481,1704414638854,-448.35,0.00024787,2]
[310240482,1704414638864,-1580.15293572,0.00025,2]
[310240483,1704414638873,-482.276,0.00025,2]
[310240484,1704414638882,-155.0,0.00025,2]
[310240485,1704414638891,-302.30426435,0.00025,2]
[310240486,1704414638900,-320.37003899,0.00025,2]
[310240487,1704414638910,-506.89562327,0.00025,2]
[310240488,1704414638919,-200.0,0.00025014,2]
[310240489,1704414638928,-2067.90273436,0.0002509,2]
[310240490,1704414638938,-913.01,0.00025096,2]
[310240491,1704414638947,-791.58,0.00025112,2]
[310240492,1704414638957,-840.0,0.00025154,2]
[310240493,1704414638966,-164.3,0.00025245,2]
[310240494,1704414638976,-1310.0,0.00025459,2]
[310240495,1704414638986,-210.0,0.00025464,2]
[310240496,1704414638995,-3395.7229591,0.00026,2]
[310240497,1704414639005,-21446.0,0.00026,2]
[310240498,1704414639017,-1960.0,0.00026,2]
[310240499,1704414639026,-913.01,0.0002601,2]
[310240500,1704414639035,-160.0,0.00026049,2]
[310240501,1704414639045,-150.0,0.00026079,2]
[310240502,1704414639055,-791.58,0.00026091,2]
[310240503,1704414639064,-156.67,0.00026527,2]
[310240504,1704414639074,-913.01,0.00026924,2]
[310240505,1704414639083,-156.67,0.00026981,2]
[310240506,1704414639093,-250.0,0.00027,3]
[310240507,1704414639102,-448.35,0.00027051,2]
[310240508,1704414639112,-791.58,0.00027069,2]
[310240509,1704414639121,-199.0,0.000271,5]
[310240510,1704414639130,-155.0,0.00027397,2]
[310240511,1704414639141,-970.03,0.00027397,2]
[310240512,1704414639151,-156.67,0.00027434,2]
[310240513,1704414639161,-2051.32013512,0.00027556,6]
[310240514,1704414639170,-970.03,0.00027556,2]
[310240515,1704414639180,-970.03,0.00027714,2]
[310240516,1704414639189,-913.01,0.00027838,2]
[310240517,1704414639199,-62.39430119,0.00027872,2]
[310240518,1704414639212,-907.63569881,0.00027872,2]
[310240519,1704414639222,-156.67,0.00027888,2]
[310240520,1704414639231,-4256.05,0.00027945,2]
[310240521,1704414639241,-840.0,0.00027949,2]
[310240522,1704414639250,-1368.07505839,0.00028,2]
[310240523,1704414639259,-970.03,0.0002803,2]
[310240524,1704414639269,-791.58,0.00028048,2]
[310240525,1704414639278,-970.03,0.00028189,2]
[310240526,1704414639287,-156.67,0.00028342,2]
[310240527,1704414639297,-970.03,0.00028347,2]
[310240528,1704414639306,-800.0,0.00028466,2]
[310240529,1704414639315,-970.03,0.00028505,2]
[310240530,1704414639325,-970.03,0.00028664,2]
[310240531,1704414639334,-913.83926648,0.00028712,2]
[310240532,1704414639343,-913.01,0.00028752,2]
[310240533,1704414639353,-155.0,0.00028767,2]
[310240534,1704414639362,-156.67,0.00028795,2]
[310240535,1704414639372,-970.03,0.00028822,2]
[310240536,1704414639382,-160.0,0.00028943,2]
[310240537,1704414639392,-128970.79256008,0.00029,2]
[310240538,1704414639401,-300.0,0.00029,3]
[310240539,1704414639412,-22214.67,0.00029009,2]
[310240540,1704414639421,-207.23,0.00029009,2]
[310240541,1704414639431,-7146.49,0.00029009,2]
[310240542,1704414639440,-19999.99,0.00029009,2]
[310240543,1704414639449,-791.58,0.00029026,2]
[310240544,1704414639459,-156.67,0.00029249,2]
[310240545,1704414639469,-448.35,0.00029315,2]
[310240546,1704414639478,-913.01,0.00029666,2]
[310240547,1704414639488,-156.67,0.00029703,2]
[310240548,1704414639497,-195.21826193,0.000298,2]
[310240549,1704414639506,-172.56117744,0.0003,4]
[310240550,1704414639515,-7694.80186229,0.0003,2]
[310240551,1704414639524,-155.0,0.0003,2]
[310240552,1704414639534,-18932.4699302,0.0003,4]
[310240553,1704414639543,-689.50611015,0.0003,2]
[310240554,1704414639553,-2726.15804013,0.0003,2]
[310240555,1704414639563,-637.77705,0.0003,2]
[310240556,1704414639572,-637.77705,0.0003,2]
[310240557,1704414639582,-637.77705,0.0003,2]
[310240558,1704414639591,-637.77705,0.0003,2]
[310240559,1704414639601,-637.77705,0.0003,2]
[310240560,1704414639610,-637.77705,0.0003,2]
[310240562,1704414639620,-201.0,0.0003,2]
[310240564,1704414639629,-1000.0,0.0003,2]
[310240566,1704414639639,-791.58,0.00030005,2]
[310240568,1704414639648,-153.84,0.00030137,2]
[310240570,1704414639657,-10000.0,0.00030137,2]
[310240572,1704414639668,-155.0,0.00030137,2]
[310240574,1704414639677,-156.67,0.00030156,2]
[310240575,1704414639688,-151.58911581,0.00030299,2]
[310240576,1704414639697,-210.0,0.00030398,10]
[310240577,1704414639707,-156.67,0.0003061,2]
[310240578,1704414639716,-840.0,0.00030744,2]
[310240579,1704414639725,-791.58,0.00030983,2]
[310240580,1704414639734,-350.0,0.00031,3]
[310240581,1704414639744,-153.84,0.0003105,2]
[310240582,1704414639758,-156.67,0.00031063,2]
[310240583,1704414639767,-152.0,0.00031494,3]
[310240584,1704414639777,-155.0,0.00031507,2]
[310240585,1704414639787,-156.67,0.00031517,2]
[310240586,1704414639797,-448.35,0.00031579,2]
[310240587,1704414639806,-67666.3682742,0.000318,3]
[310240588,1704414639816,-150.0,0.000318,2]
[310240589,1704414639826,-160.0,0.00031838,2]
[310240590,1704414639835,-152.95511546,0.000319,2]
[310240591,1704414639846,-152.95511515,0.000319,2]
[310240592,1704414639855,-152.95511515,0.000319,2]
[310240593,1704414639865,-152.95511515,0.000319,2]
[310240594,1704414639873,-152.95511515,0.000319,2]
[310240595,1704414639883,-152.95511515,0.000319,2]
[310240596,1704414639892,-152.95511515,0.000319,2]
[310240597,1704414639901,-791.58,0.00031962,2]
[310240598,1704414639910,-153.84,0.00031963,2]
[310240599,1704414639920,-179.82017932,0.00032,4]
[310240600,1704414639929,-6097.5995,0.00032,4]
[310240601,1704414639938,-203.24518375,0.00032,2]
[310240602,1704414639947,-203.24518375,0.00032,2]
[310240603,1704414639956,-203.24518375,0.00032,2]
[310240604,1704414639966,-154.0,0.00032,2]
[310240605,1704414639975,-154.0,0.00032,2]
[310240606,1704414639985,-154.0,0.00032,2]
[310240607,1704414639994,-154.0,0.00032,2]
[310240608,1704414640004,-154.0,0.00032,2]
[310240609,1704414640013,-154.0,0.00032,2]
[310240610,1704414640022,-154.0,0.00032,2]
[310240611,1704414640031,-154.0,0.00032,2]
[310240612,1704414640041,-154.0,0.00032,2]
[310240613,1704414640051,-154.0,0.00032,2]
[310240614,1704414640061,-154.0,0.00032,2]
[310240615,1704414640071,-154.0,0.00032,2]
[310240616,1704414640080,-16460.80633083,0.000325,2]
[310240617,1704414640090,-1009.0,0.000326,7]
[310240618,1704414640102,-152.95511515,0.00032765,2]
[310240619,1704414640111,-730.32,0.00032767,2]
[310240620,1704414640120,-225.12,0.00032866,10]
[310240621,1704414640129,-187.6,0.00032866,10]
[310240622,1704414640138,-156.33,0.00032866,10]
[310240623,1704414640148,-5466.43383819,0.00032875,4]
[310240624,1704414640158,-150.0,0.00032875,2]